[Event "*** Titled Tuesday Blitz"]
[Site "Chess.com"]
[Date "2020.10.27"]
[Round "9"]
[White "YoungUzbek"]
[Black "PhileKhoob"]
[Result "1-0"]
[WhiteElo "2744"]
[BlackElo "2460"]
[TimeControl "180+1"]
[EndTime "11:42:17 PDT"]
[Termination "YoungUzbek won by resignation"]

1. d4 {[%clk 0:03:00.9]} 1... Nf6 {[%clk 0:02:59.8]} 2. Bg5 {[%clk 0:03:00.2]}
2... d5 {[%clk 0:02:58.7]} 3. e3 {[%clk 0:02:59.9]} 3... Ne4 {[%clk 0:02:58.8]}
4. Bh4 {[%clk 0:02:59.4]} 4... g6 {[%clk 0:02:59.2]} 5. Nd2 {[%clk 0:02:58.9]}
5... Bg7 {[%clk 0:02:59.7]} 6. Bd3 {[%clk 0:02:57.6]} 6... Nf6 {[%clk
0:02:57.7]} 7. f4 {[%clk 0:02:50.3]} 7... c5 {[%clk 0:02:55.9]} 8. c3 {[%clk
0:02:50.2]} 8... Nc6 {[%clk 0:02:55.5]} 9. Ngf3 {[%clk 0:02:50.1]} 9... b6
{[%clk 0:02:55.4]} 10. Ne5 {[%clk 0:02:48.5]} 10... Bb7 {[%clk 0:02:54.8]} 11.
Bb5 {[%clk 0:02:48.1]} 11... Qc7 {[%clk 0:02:42.2]} 12. Qa4 {[%clk 0:02:47.9]}
12... Rc8 {[%clk 0:02:31.9]} 13. Qxa7 {[%clk 0:02:47.5]} 13... Nd7 {[%clk
0:02:13.1]} 14. Bxc6 {[%clk 0:02:21.3]} 14... Bxc6 {[%clk 0:02:13.1]} 15. Qxc7
{[%clk 0:02:21.4]} 15... Rxc7 {[%clk 0:02:14]} 16. Nxc6 {[%clk 0:02:21.7]} 16...
Rxc6 {[%clk 0:02:14.9]} 17. Ke2 {[%clk 0:02:22.2]} 17... f5 {[%clk 0:02:12]} 18.
a4 {[%clk 0:02:20.9]} 18... c4 {[%clk 0:02:10.9]} 19. Rhb1 {[%clk 0:02:19.5]}
19... Kf7 {[%clk 0:02:09.3]} 20. b3 {[%clk 0:02:17.8]} 20... cxb3 {[%clk
0:02:08.8]} 21. Rxb3 {[%clk 0:02:18.7]} 21... Rhc8 {[%clk 0:02:08.9]} 22. Kd3
{[%clk 0:02:18.9]} 22... e6 {[%clk 0:02:05.7]} 23. a5 {[%clk 0:02:12.7]} 23...
bxa5 {[%clk 0:02:04.9]} 24. Rxa5 {[%clk 0:02:13.6]} 24... R8c7 {[%clk
0:01:54.5]} 25. Ra8 {[%clk 0:01:53]} 25... Nb6 {[%clk 0:01:49.1]} 26. Rxb6
{[%clk 0:01:46.8]} 26... Rxb6 {[%clk 0:01:47.2]} 27. Bd8 {[%clk 0:01:47.2]}
27... Rbc6 {[%clk 0:01:41.1]} 28. Bxc7 {[%clk 0:01:46.6]} 28... Rxc7 {[%clk
0:01:42]} 29. c4 {[%clk 0:01:43.7]} 29... dxc4+ {[%clk 0:01:42]} 30. Nxc4 {[%clk
0:01:44.6]} 30... Rb7 {[%clk 0:01:41.3]} 31. Nd6+ {[%clk 0:01:44.5]} 1-0

[Event "*** Titled Tuesday Blitz"]
[Site "Chess.com"]
[Date "2020.10.27"]
[Round "9"]
[White "Evachess2006"]
[Black "teacher4chess"]
[Result "0-1"]
[WhiteElo "1643"]
[BlackElo "2067"]
[TimeControl "180+1"]
[EndTime "11:42:25 PDT"]
[Termination "teacher4chess won by resignation"]

1. e4 {[%clk 0:02:55.3]} 1... d5 {[%clk 0:02:59.4]} 2. exd5 {[%clk 0:02:52.5]}
2... Qxd5 {[%clk 0:02:59.3]} 3. d4 {[%clk 0:02:53.4]} 3... Nc6 {[%clk 0:02:58]}
4. Nf3 {[%clk 0:02:50.9]} 4... e5 {[%clk 0:02:53.7]} 5. dxe5 {[%clk 0:02:46.3]}
5... Qxd1+ {[%clk 0:02:51.1]} 6. Kxd1 {[%clk 0:02:45.4]} 6... Bg4 {[%clk
0:02:50.3]} 7. Bf4 {[%clk 0:02:40.7]} 7... Nge7 {[%clk 0:02:31.9]} 8. h3 {[%clk
0:02:38.1]} 8... Bxf3+ {[%clk 0:02:29.8]} 9. gxf3 {[%clk 0:02:39]} 9... Ng6
{[%clk 0:02:29.6]} 10. Bg3 {[%clk 0:02:18.4]} 10... Ncxe5 {[%clk 0:02:22.6]} 11.
Bb5+ {[%clk 0:02:12.6]} 11... c6 {[%clk 0:02:21.8]} 12. Re1 {[%clk 0:02:08.8]}
12... O-O-O+ {[%clk 0:02:21.5]} 13. Nd2 {[%clk 0:01:19.4]} 13... Nxf3 {[%clk
0:02:15.8]} 14. Re2 {[%clk 0:01:00.8]} 14... cxb5 {[%clk 0:02:12]} 0-1

[Event "*** Titled Tuesday Blitz"]
[Site "Chess.com"]
[Date "2020.10.27"]
[Round "9"]
[White "ural58"]
[Black "WanderingPuppet"]
[Result "0-1"]
[WhiteElo "2348"]
[BlackElo "2510"]
[TimeControl "180+1"]
[EndTime "11:42:37 PDT"]
[Termination "WanderingPuppet won by resignation"]

1. e4 {[%clk 0:02:53.2]} 1... c5 {[%clk 0:02:59.3]} 2. b3 {[%clk 0:02:53]} 2...
Nc6 {[%clk 0:02:57.1]} 3. Bb2 {[%clk 0:02:53.1]} 3... d6 {[%clk 0:02:56.7]} 4.
f4 {[%clk 0:02:52.9]} 4... Nf6 {[%clk 0:02:53.8]} 5. Qf3 {[%clk 0:02:52.8]} 5...
a6 {[%clk 0:02:32.7]} 6. Nc3 {[%clk 0:02:40]} 6... g6 {[%clk 0:02:26.2]} 7. e5
{[%clk 0:02:28.9]} 7... dxe5 {[%clk 0:02:14.4]} 8. fxe5 {[%clk 0:02:28.6]} 8...
Nxe5 {[%clk 0:02:15.2]} 9. Qg3 {[%clk 0:02:24.8]} 9... Nc6 {[%clk 0:01:58.9]}
10. O-O-O {[%clk 0:02:24]} 10... Bg7 {[%clk 0:01:58.2]} 11. Nf3 {[%clk
0:02:22.3]} 11... O-O {[%clk 0:01:54]} 12. Ng5 {[%clk 0:02:19.1]} 12... Nd4
{[%clk 0:01:47.5]} 13. Bc4 {[%clk 0:02:16.3]} 13... b5 {[%clk 0:01:42.6]} 14.
Bxf7+ {[%clk 0:02:06.7]} 14... Rxf7 {[%clk 0:01:39.7]} 15. Nxf7 {[%clk
0:02:07.6]} 15... Kxf7 {[%clk 0:01:38]} 16. h4 {[%clk 0:02:06]} 16... b4 {[%clk
0:01:37.2]} 17. Rhe1 {[%clk 0:01:58.8]} 17... bxc3 {[%clk 0:01:05]} 18. dxc3
{[%clk 0:01:58.4]} 18... Ne2+ {[%clk 0:00:47.2]} 19. Rxe2 {[%clk 0:01:55.9]}
19... Bh6+ {[%clk 0:00:47.7]} 20. Red2 {[%clk 0:01:55.1]} 20... Bxd2+ {[%clk
0:00:43.6]} 21. Rxd2 {[%clk 0:01:54.8]} 21... Qxd2+ {[%clk 0:00:43.3]} 0-1

[Event "*** Titled Tuesday Blitz"]
[Site "Chess.com"]
[Date "2020.10.27"]
[Round "9"]
[White "Sergey85Rodchenkov"]
[Black "Jungle_Jaguar"]
[Result "1-0"]
[WhiteElo "2465"]
[BlackElo "2611"]
[TimeControl "180+1"]
[EndTime "11:42:56 PDT"]
[Termination "Sergey85Rodchenkov won by resignation"]

1. e4 {[%clk 0:03:00.9]} 1... e5 {[%clk 0:02:59.6]} 2. Nf3 {[%clk 0:03:00.9]}
2... Nc6 {[%clk 0:02:59.3]} 3. Bc4 {[%clk 0:03:00.9]} 3... Nf6 {[%clk
0:02:58.6]} 4. d3 {[%clk 0:03:01.1]} 4... Bc5 {[%clk 0:02:57.4]} 5. O-O {[%clk
0:03:00.8]} 5... d6 {[%clk 0:02:57.3]} 6. c3 {[%clk 0:03:00.9]} 6... a6 {[%clk
0:02:57.3]} 7. Bb3 {[%clk 0:03:00]} 7... Ba7 {[%clk 0:02:50.3]} 8. Nbd2 {[%clk
0:02:58.9]} 8... h6 {[%clk 0:02:50.3]} 9. Re1 {[%clk 0:02:58.7]} 9... O-O {[%clk
0:02:50.9]} 10. Nf1 {[%clk 0:02:58.5]} 10... Re8 {[%clk 0:02:50.9]} 11. Ng3
{[%clk 0:02:58.5]} 11... Be6 {[%clk 0:02:51.3]} 12. Bxe6 {[%clk 0:02:55.5]}
12... Rxe6 {[%clk 0:02:52.2]} 13. d4 {[%clk 0:02:51.1]} 13... Re8 {[%clk
0:02:24.1]} 14. h3 {[%clk 0:02:47.9]} 14... Qd7 {[%clk 0:02:20.7]} 15. Qd3
{[%clk 0:02:41.5]} 15... Rad8 {[%clk 0:02:16.6]} 16. Be3 {[%clk 0:02:39.6]}
16... exd4 {[%clk 0:01:29.3]} 17. Nxd4 {[%clk 0:02:38.6]} 17... Ne5 {[%clk
0:01:24.6]} 18. Qc2 {[%clk 0:02:38.1]} 18... Nc4 {[%clk 0:01:24.3]} 19. Bf4
{[%clk 0:02:29.9]} 19... Nh7 {[%clk 0:01:04.4]} 20. Rad1 {[%clk 0:02:25.9]}
20... Nf8 {[%clk 0:01:04.1]} 21. Ndf5 {[%clk 0:02:19.4]} 21... Ng6 {[%clk
0:01:04.4]} 22. Bc1 {[%clk 0:02:19.1]} 22... Re6 {[%clk 0:01:02]} 23. b3 {[%clk
0:02:13.8]} 23... Nce5 {[%clk 0:01:02]} 24. c4 {[%clk 0:02:12]} 24... Rde8
{[%clk 0:00:59.6]} 25. Bb2 {[%clk 0:02:11.7]} 25... Nc6 {[%clk 0:00:58.4]} 26.
Nxg7 {[%clk 0:02:05.6]} 26... R6e7 {[%clk 0:00:48.8]} 27. Nxe8 {[%clk
0:02:04.2]} 27... Rxe8 {[%clk 0:00:47.1]} 28. Nf5 {[%clk 0:02:03.7]} 28... Kh7
{[%clk 0:00:47.7]} 29. Qd2 {[%clk 0:01:58.3]} 1-0

[Event "*** Titled Tuesday Blitz"]
[Site "Chess.com"]
[Date "2020.10.27"]
[Round "9"]
[White "Meri-Arabidze"]
[Black "Grandmaster2B"]
[Result "1-0"]
[WhiteElo "2678"]
[BlackElo "2493"]
[TimeControl "180+1"]
[EndTime "11:43:23 PDT"]
[Termination "Meri-Arabidze won by resignation"]

1. d4 {[%clk 0:03:00.9]} 1... Nf6 {[%clk 0:03:00.1]} 2. c4 {[%clk 0:03:01.1]}
2... e6 {[%clk 0:03:00.7]} 3. Nc3 {[%clk 0:03:01.7]} 3... Bb4 {[%clk 0:03:01.1]}
4. Nf3 {[%clk 0:03:02]} 4... b6 {[%clk 0:03:00.9]} 5. e3 {[%clk 0:03:01.6]} 5...
O-O {[%clk 0:03:00.4]} 6. Bd3 {[%clk 0:03:01.7]} 6... Bb7 {[%clk 0:03:00.2]} 7.
O-O {[%clk 0:03:01.4]} 7... c5 {[%clk 0:02:51.8]} 8. Na4 {[%clk 0:03:00.1]} 8...
cxd4 {[%clk 0:02:47.8]} 9. exd4 {[%clk 0:03:01]} 9... Be7 {[%clk 0:02:46.7]} 10.
a3 {[%clk 0:03:01.6]} 10... Qc7 {[%clk 0:02:45]} 11. b4 {[%clk 0:02:56.5]} 11...
d6 {[%clk 0:02:35.5]} 12. Re1 {[%clk 0:02:56.1]} 12... Nbd7 {[%clk 0:02:35.6]}
13. Bf4 {[%clk 0:02:54.9]} 13... Qc6 {[%clk 0:02:32]} 14. Nc3 {[%clk 0:02:34.1]}
14... Rfd8 {[%clk 0:02:23.8]} 15. Qe2 {[%clk 0:02:26.5]} 15... Bf8 {[%clk
0:01:48.4]} 16. Rac1 {[%clk 0:02:25.2]} 16... e5 {[%clk 0:01:46.4]} 17. d5
{[%clk 0:02:18.5]} 17... Qc8 {[%clk 0:01:42.3]} 18. Bg5 {[%clk 0:02:18.7]} 18...
h6 {[%clk 0:01:41]} 19. Bh4 {[%clk 0:02:18.7]} 19... Re8 {[%clk 0:01:29.9]} 20.
Bf5 {[%clk 0:02:17.5]} 20... Be7 {[%clk 0:01:22.3]} 21. Bxf6 {[%clk 0:01:51.9]}
21... Bxf6 {[%clk 0:01:21.2]} 22. Ne4 {[%clk 0:01:52.6]} 22... Be7 {[%clk
0:01:19.2]} 23. c5 {[%clk 0:01:43.1]} 23... dxc5 {[%clk 0:01:10.3]} 24. Nxe5
{[%clk 0:01:42.6]} 24... Rd8 {[%clk 0:01:00.4]} 25. Nxd7 {[%clk 0:01:35.7]}
25... Rxd7 {[%clk 0:01:01.3]} 26. Qg4 {[%clk 0:01:34.5]} 26... Rxd5 {[%clk
0:00:51.4]} 27. Bxc8 {[%clk 0:01:32.6]} 27... Bxc8 {[%clk 0:00:52.3]} 28. Qf3
{[%clk 0:01:30.6]} 28... Be6 {[%clk 0:00:51.5]} 29. bxc5 {[%clk 0:01:28.7]}
29... bxc5 {[%clk 0:00:52.4]} 30. Nxc5 {[%clk 0:01:21.9]} 1-0

[Event "*** Titled Tuesday Blitz"]
[Site "Chess.com"]
[Date "2020.10.27"]
[Round "9"]
[White "sara_khm"]
[Black "Inga83"]
[Result "1-0"]
[WhiteElo "2580"]
[BlackElo "2405"]
[TimeControl "180+1"]
[EndTime "11:43:27 PDT"]
[Termination "sara_khm won by resignation"]

1. d4 {[%clk 0:03:00.9]} 1... Nf6 {[%clk 0:02:58.4]} 2. Nf3 {[%clk 0:03:00.5]}
2... d5 {[%clk 0:02:58.2]} 3. c4 {[%clk 0:03:00]} 3... e6 {[%clk 0:02:54.5]} 4.
Nc3 {[%clk 0:02:59.7]} 4... Bb4 {[%clk 0:02:54.4]} 5. Bg5 {[%clk 0:02:50.7]}
5... h6 {[%clk 0:02:52.6]} 6. Bxf6 {[%clk 0:02:50.7]} 6... Qxf6 {[%clk
0:02:51.8]} 7. Qb3 {[%clk 0:02:51.3]} 7... Qe7 {[%clk 0:02:42]} 8. cxd5 {[%clk
0:02:48.9]} 8... exd5 {[%clk 0:02:41.5]} 9. Qxd5 {[%clk 0:02:47.9]} 9... O-O
{[%clk 0:02:41.1]} 10. e3 {[%clk 0:02:47]} 10... c6 {[%clk 0:02:40.4]} 11. Qb3
{[%clk 0:02:45.7]} 11... Be6 {[%clk 0:02:37.6]} 12. Qc2 {[%clk 0:02:45.6]} 12...
Nd7 {[%clk 0:02:31.6]} 13. Be2 {[%clk 0:02:45.1]} 13... Nf6 {[%clk 0:02:31.2]}
14. O-O {[%clk 0:02:44.8]} 14... Rac8 {[%clk 0:02:29.8]} 15. a3 {[%clk
0:02:43.8]} 15... Ba5 {[%clk 0:02:29.5]} 16. b4 {[%clk 0:02:43.7]} 16... Bc7
{[%clk 0:02:28.9]} 17. Na4 {[%clk 0:02:40.3]} 17... Bd5 {[%clk 0:02:26.8]} 18.
Nc5 {[%clk 0:02:37.6]} 18... b6 {[%clk 0:02:25.5]} 19. Nd3 {[%clk 0:02:35.1]}
19... Ng4 {[%clk 0:02:18.2]} 20. h3 {[%clk 0:02:31.3]} 20... Nf6 {[%clk
0:02:02]} 21. Nde5 {[%clk 0:02:30.5]} 21... Bb8 {[%clk 0:02:00.4]} 22. Ba6
{[%clk 0:02:27.6]} 22... Rcd8 {[%clk 0:01:51]} 23. Bd3 {[%clk 0:02:18.8]} 23...
Rc8 {[%clk 0:01:36.7]} 24. e4 {[%clk 0:02:16.4]} 24... Be6 {[%clk 0:01:35.4]}
25. Nxc6 {[%clk 0:02:07.5]} 25... Qd6 {[%clk 0:01:33.3]} 26. b5 {[%clk
0:02:05.7]} 26... Nh5 {[%clk 0:01:26.6]} 27. d5 {[%clk 0:01:57.9]} 27... Bd7
{[%clk 0:01:24]} 28. e5 {[%clk 0:01:55.4]} 28... Qc7 {[%clk 0:01:16.1]} 29. Ne7+
{[%clk 0:01:55.3]} 29... Kh8 {[%clk 0:01:15.6]} 30. Nxc8 {[%clk 0:01:55.3]}
30... Qxc2 {[%clk 0:01:12.7]} 31. Bxc2 {[%clk 0:01:54.7]} 31... Rxc8 {[%clk
0:01:12.6]} 32. Rac1 {[%clk 0:01:51.8]} 32... Bxb5 {[%clk 0:01:10.5]} 33. Bd3
{[%clk 0:01:46.4]} 33... Rxc1 {[%clk 0:01:07.2]} 34. Rxc1 {[%clk 0:01:46.3]}
34... Bxd3 {[%clk 0:01:03.7]} 35. Rc8+ {[%clk 0:01:46.1]} 35... Kh7 {[%clk
0:01:04.6]} 36. Rxb8 {[%clk 0:01:45.9]} 36... Nf4 {[%clk 0:01:03.8]} 37. d6
{[%clk 0:01:45.9]} 37... Bf5 {[%clk 0:01:01]} 38. Nd4 {[%clk 0:01:44.1]} 38...
Bd7 {[%clk 0:00:57]} 39. Rb7 {[%clk 0:01:44.1]} 1-0

[Event "*** Titled Tuesday Blitz"]
[Site "Chess.com"]
[Date "2020.10.27"]
[Round "9"]
[White "Lagmantr"]
[Black "korbul"]
[Result "0-1"]
[WhiteElo "2731"]
[BlackElo "2610"]
[TimeControl "180+1"]
[EndTime "11:43:30 PDT"]
[Termination "korbul won by checkmate"]

1. e3 {[%clk 0:01:36.8]} 1... d5 {[%clk 0:02:59.3]} 2. c4 {[%clk 0:01:37.2]}
2... e6 {[%clk 0:02:58.9]} 3. b3 {[%clk 0:01:37.5]} 3... Nf6 {[%clk 0:02:58.5]}
4. Bb2 {[%clk 0:01:38.1]} 4... b6 {[%clk 0:02:58.6]} 5. Nf3 {[%clk 0:01:38.6]}
5... Bb7 {[%clk 0:02:58.9]} 6. cxd5 {[%clk 0:01:38.1]} 6... exd5 {[%clk
0:02:58.5]} 7. Be2 {[%clk 0:01:38.7]} 7... Bd6 {[%clk 0:02:57.5]} 8. O-O {[%clk
0:01:39.2]} 8... Nbd7 {[%clk 0:02:57.1]} 9. d3 {[%clk 0:01:39.6]} 9... O-O
{[%clk 0:02:55.7]} 10. Nbd2 {[%clk 0:01:40.2]} 10... a6 {[%clk 0:02:53.3]} 11.
Rc1 {[%clk 0:01:40.1]} 11... Re8 {[%clk 0:02:52.3]} 12. h3 {[%clk 0:01:40.4]}
12... Qe7 {[%clk 0:02:52.4]} 13. Re1 {[%clk 0:01:39.6]} 13... Rac8 {[%clk
0:02:45.3]} 14. Bf1 {[%clk 0:01:35.1]} 14... Ba3 {[%clk 0:02:44.2]} 15. Qc2
{[%clk 0:01:31.9]} 15... Bxb2 {[%clk 0:02:42.2]} 16. Qxb2 {[%clk 0:01:30.8]}
16... c5 {[%clk 0:02:39.7]} 17. e4 {[%clk 0:01:26.4]} 17... dxe4 {[%clk
0:02:30.7]} 18. dxe4 {[%clk 0:01:22.8]} 18... b5 {[%clk 0:02:25.7]} 19. e5
{[%clk 0:01:19.1]} 19... Nd5 {[%clk 0:02:19.5]} 20. Ne4 {[%clk 0:01:17.6]} 20...
Nf4 {[%clk 0:02:18.4]} 21. Nd6 {[%clk 0:00:58.2]} 21... Bxf3 {[%clk 0:02:17.3]}
22. gxf3 {[%clk 0:00:58.1]} 22... Rc6 {[%clk 0:01:56.8]} 23. Nxe8 {[%clk
0:00:53.1]} 23... Rg6+ {[%clk 0:01:48.7]} 24. Bg2 {[%clk 0:00:30.7]} 24... Rxg2+
{[%clk 0:01:41.1]} 25. Kh1 {[%clk 0:00:31.1]} 25... Qh4 {[%clk 0:01:36.5]} 26.
Nf6+ {[%clk 0:00:31.2]} 26... Nxf6 {[%clk 0:01:34.3]} 27. exf6 {[%clk
0:00:30.2]} 27... Qxh3# {[%clk 0:01:34]} 0-1

[Event "*** Titled Tuesday Blitz"]
[Site "Chess.com"]
[Date "2020.10.27"]
[Round "9"]
[White "Mikhail_Golubev"]
[Black "swimmerchess"]
[Result "1-0"]
[WhiteElo "2533"]
[BlackElo "2779"]
[TimeControl "180+1"]
[EndTime "11:43:36 PDT"]
[Termination "Mikhail_Golubev won by resignation"]

1. e4 {[%clk 0:03:00.9]} 1... c5 {[%clk 0:02:59]} 2. Nf3 {[%clk 0:03:00.8]} 2...
Nc6 {[%clk 0:02:59.4]} 3. Nc3 {[%clk 0:03:00.2]} 3... Nf6 {[%clk 0:02:58.9]} 4.
Bb5 {[%clk 0:02:59.3]} 4... Nd4 {[%clk 0:02:55.8]} 5. e5 {[%clk 0:02:59]} 5...
Nxb5 {[%clk 0:02:52.7]} 6. Nxb5 {[%clk 0:02:59.9]} 6... Nd5 {[%clk 0:02:52.6]}
7. Ng5 {[%clk 0:02:57.4]} 7... f6 {[%clk 0:02:52.5]} 8. exf6 {[%clk 0:02:53.6]}
8... Nxf6 {[%clk 0:02:39.7]} 9. O-O {[%clk 0:02:45.6]} 9... a6 {[%clk
0:02:30.4]} 10. Nc3 {[%clk 0:02:44.5]} 10... g6 {[%clk 0:02:27.1]} 11. d4 {[%clk
0:02:38.5]} 11... cxd4 {[%clk 0:02:26.7]} 12. Qxd4 {[%clk 0:02:37.9]} 12... Bg7
{[%clk 0:02:27.1]} 13. Bf4 {[%clk 0:02:13]} 13... O-O {[%clk 0:02:15.5]} 14.
Rad1 {[%clk 0:02:12.5]} 14... Kh8 {[%clk 0:02:01]} 15. Ne6 {[%clk 0:02:00.3]}
15... Qa5 {[%clk 0:01:46.7]} 16. Nxf8 {[%clk 0:01:54.5]} 16... Bxf8 {[%clk
0:01:47.6]} 17. Nd5 {[%clk 0:01:48.7]} 17... Bg7 {[%clk 0:01:11.7]} 18. Nxe7
{[%clk 0:01:40.9]} 18... Qxa2 {[%clk 0:01:11.3]} 19. b3 {[%clk 0:01:22.8]} 19...
Qa3 {[%clk 0:00:49]} 20. Bd6 {[%clk 0:01:11.8]} 20... Qa5 {[%clk 0:00:48.6]} 21.
Be5 {[%clk 0:01:07.7]} 21... Ne8 {[%clk 0:00:44]} 22. Bxg7+ {[%clk 0:01:07.1]}
22... Nxg7 {[%clk 0:00:44.9]} 23. Qf6 {[%clk 0:01:06.8]} 1-0

[Event "*** Titled Tuesday Blitz"]
[Site "Chess.com"]
[Date "2020.10.27"]
[Round "9"]
[White "IngOscarArdila"]
[Black "Sueetin"]
[Result "0-1"]
[WhiteElo "2154"]
[BlackElo "2313"]
[TimeControl "180+1"]
[EndTime "11:43:37 PDT"]
[Termination "Sueetin won by resignation"]

1. d4 {[%clk 0:03:00.9]} 1... Nf6 {[%clk 0:02:59.8]} 2. c4 {[%clk 0:02:58.6]}
2... e6 {[%clk 0:02:59.5]} 3. Nc3 {[%clk 0:02:56.9]} 3... Bb4 {[%clk 0:02:59.3]}
4. Bd2 {[%clk 0:02:56.6]} 4... b6 {[%clk 0:02:57.5]} 5. Nf3 {[%clk 0:02:56.7]}
5... O-O {[%clk 0:02:56.3]} 6. e3 {[%clk 0:02:56.6]} 6... Bb7 {[%clk 0:02:55.8]}
7. Be2 {[%clk 0:02:56.1]} 7... d6 {[%clk 0:02:54]} 8. O-O {[%clk 0:02:55.4]}
8... Nbd7 {[%clk 0:02:49.3]} 9. Rc1 {[%clk 0:02:54.3]} 9... c5 {[%clk
0:02:47.5]} 10. dxc5 {[%clk 0:02:50.3]} 10... bxc5 {[%clk 0:02:47]} 11. Qc2
{[%clk 0:02:48.7]} 11... Bxc3 {[%clk 0:02:41.9]} 12. Bxc3 {[%clk 0:02:48.3]}
12... Be4 {[%clk 0:02:42.4]} 13. Bd3 {[%clk 0:02:44.6]} 13... Bxf3 {[%clk
0:02:29.9]} 14. gxf3 {[%clk 0:02:43.7]} 14... Qb6 {[%clk 0:02:18.3]} 15. Kh1
{[%clk 0:02:23.2]} 15... d5 {[%clk 0:02:15.2]} 16. cxd5 {[%clk 0:02:20.7]} 16...
exd5 {[%clk 0:02:15.2]} 17. Rg1 {[%clk 0:02:19.4]} 17... d4 {[%clk 0:02:11.7]}
18. Bd2 {[%clk 0:02:09.8]} 18... Ne5 {[%clk 0:01:36.9]} 19. Be4 {[%clk
0:01:48.8]} 19... Nxe4 {[%clk 0:01:19.7]} 20. fxe4 {[%clk 0:01:48.8]} 20... Qf6
{[%clk 0:01:13.3]} 21. f4 {[%clk 0:01:44.7]} 21... Nf3 {[%clk 0:01:13]} 22. Rg3
{[%clk 0:01:42.8]} 22... Nxd2 {[%clk 0:01:06.7]} 23. Qxd2 {[%clk 0:01:42.7]}
23... dxe3 {[%clk 0:01:05.8]} 24. Qxe3 {[%clk 0:01:41.8]} 24... Qxb2 {[%clk
0:01:02.1]} 25. Rcg1 {[%clk 0:01:35.9]} 25... g6 {[%clk 0:01:02.2]} 26. f5
{[%clk 0:01:35.5]} 26... Qd4 {[%clk 0:01:01.3]} 27. Qh6 {[%clk 0:01:32.3]} 27...
Qxe4+ {[%clk 0:01:00.4]} 28. R3g2 {[%clk 0:01:24.6]} 28... Qxf5 {[%clk
0:01:00.4]} 29. h4 {[%clk 0:01:24.6]} 29... Rad8 {[%clk 0:00:54.9]} 30. h5
{[%clk 0:01:24.5]} 30... Rd3 {[%clk 0:00:50.5]} 31. hxg6 {[%clk 0:01:21.9]}
31... Rh3+ {[%clk 0:00:48.5]} 32. Rh2 {[%clk 0:01:22.1]} 32... Qf3+ {[%clk
0:00:44.4]} 0-1

[Event "*** Titled Tuesday Blitz"]
[Site "Chess.com"]
[Date "2020.10.27"]
[Round "9"]
[White "AnishOnYoutube"]
[Black "Anton_Demchenko"]
[Result "0-1"]
[WhiteElo "2956"]
[BlackElo "2863"]
[TimeControl "180+1"]
[EndTime "11:44:03 PDT"]
[Termination "Anton_Demchenko won by resignation"]

1. e4 {[%clk 0:03:00.9]} 1... g6 {[%clk 0:02:59.2]} 2. d4 {[%clk 0:03:00.6]}
2... d6 {[%clk 0:02:59.4]} 3. Nf3 {[%clk 0:03:00.5]} 3... Nf6 {[%clk 0:02:59]}
4. Nc3 {[%clk 0:03:00.2]} 4... Bg7 {[%clk 0:02:59.2]} 5. Be3 {[%clk 0:03:00.8]}
5... a6 {[%clk 0:02:58.7]} 6. Qd2 {[%clk 0:03:00.4]} 6... Nc6 {[%clk 0:02:58.8]}
7. d5 {[%clk 0:02:48.9]} 7... Na7 {[%clk 0:02:58]} 8. Bh6 {[%clk 0:02:43.1]}
8... O-O {[%clk 0:02:57.7]} 9. Bxg7 {[%clk 0:02:34.9]} 9... Kxg7 {[%clk
0:02:58.6]} 10. O-O-O {[%clk 0:02:20.4]} 10... Nb5 {[%clk 0:02:57.9]} 11. Bd3
{[%clk 0:02:20.2]} 11... c6 {[%clk 0:02:57.4]} 12. dxc6 {[%clk 0:02:05.9]} 12...
bxc6 {[%clk 0:02:58.3]} 13. e5 {[%clk 0:02:06.5]} 13... dxe5 {[%clk 0:02:58.3]}
14. Nxe5 {[%clk 0:02:07.1]} 14... Qc7 {[%clk 0:02:48.8]} 15. Rhe1 {[%clk
0:02:02.5]} 15... Rd8 {[%clk 0:02:37.5]} 16. Kb1 {[%clk 0:01:53.4]} 16... Be6
{[%clk 0:02:34]} 17. Na4 {[%clk 0:01:16.4]} 17... c5 {[%clk 0:02:16.2]} 18. c4
{[%clk 0:01:08.5]} 18... Nd4 {[%clk 0:02:10.7]} 19. Ka1 {[%clk 0:00:59.1]} 19...
Rab8 {[%clk 0:02:05.2]} 20. Qc3 {[%clk 0:00:31.8]} 20... Rb4 {[%clk 0:01:59.2]}
21. b3 {[%clk 0:00:32.2]} 21... Qa5 {[%clk 0:01:52.7]} 22. Rc1 {[%clk
0:00:28.6]} 22... Rdb8 {[%clk 0:01:46]} 23. Bb1 {[%clk 0:00:14.7]} 23... Bf5
{[%clk 0:01:27.5]} 24. Re3 {[%clk 0:00:11.8]} 24... Bxb1 {[%clk 0:01:19.2]} 25.
Rxb1 {[%clk 0:00:12.6]} 25... Qxa4 {[%clk 0:01:19.7]} 0-1